[Event "Austrian Championship 2022"]
[Site "Vienna"]
[Date "2022.08.16"]
[Round "6.8"]
[White "Sadilek, Maximilian"]
[Black "Balinov, Ilia"]
[Result "1-0"]
[ECO "B43"]
[WhiteElo "2230"]
[BlackElo "2419"]
[Annotator "TA"]
[PlyCount "57"]
[EventDate "2022.08.12"]
[EventType "swiss"]
[EventCountry "AUT"]
[SourceTitle "playchess.com"]
[Source "ChessBase"]
[SourceQuality "1"]
[TimeControl "40/5400+30:1800+30"]

{[%evp 16,57,22,-27,82,96,139,166,145,129,146,97,118,94,50,0,1,-32,-4,-28,13,15,85,86,89,79,93,0,285,108,110,102,102,11,560,556,582,597,583,593,592,588,577,530]} 1. e4 {[%emt 0:02:38]} c5 {[%emt 0:00:12]} 2. Nf3 {[%emt 0:00:24]} e6 {[%emt 0:00:34]} 3. Nc3 {[%emt 0:00:48]} a6 {[%emt 0:00:19]} 4. g3 {[%emt 0:11:49]} b5 {[%emt 0:01:14][%cal Bb7b5,Bb5b4][%mdl 32]} 5. Bg2 {[%emt 0:00:05]} b4 {[%emt 0:00:50]} 6. Na4 {[%emt 0:03:48]} Bb7 {[%emt 0:01:22]} 7. d4 {[%emt 0:00:11]} cxd4 {[%emt 0:07:22]} 8. Nxd4 {[%emt 0:00:08]} Nf6 {[%emt 0:02:20]} 9. O-O {[%emt 0:00:12]} (9. Qe2 {is superior.}) 9... Qc7 {[%emt 0:09:53] B43: Sicilian: Kan Variation: 5 Nc3.} (9... Bxe4 $11 10. Bxe4 Nxe4) 10. Re1 $16 {[%emt 0:03:05]} d6 {[%emt 0:07:56]} 11. c3 {[%emt 0:11:22]} bxc3 {[%emt 0:01:58] White is clearly better.} 12. Nxc3 {[%emt 0:00:48][%cal Oc3d5] aiming for Nd5!} Be7 {[%emt 0:03:27]} 13. Bg5 {[%emt 0:11:04]} (13. Bf4 $142) 13... Nbd7 {[%emt 0:38:06]} 14. Rc1 {[%emt 0:04:53]} Qb8 {[%emt 0:01:28] [#]} 15. Qd2 $146 {[%emt 0:22:34]} (15. Bh3 $14) ({Predecessor:} 15. Nb3 Bd8 16. Na4 O-O 17. Bd2 a5 18. Nd4 Ne5 19. Re3 Ba6 20. Rb3 Qa7 21. Be1 {0-1 (36) Paszewski,M (2323)-Dragun,K (2621) Warsaw 2017}) 15... O-O $11 {[%emt 0:12:25]} 16. f4 {[%emt 0:02:17][%cal Oe4e5]} Re8 {[%emt 0:04:31]} 17. e5 {[%emt 0:11:12]} dxe5 {[%emt 0:00:01]} 18. fxe5 {[%emt 0:00:06]} (18. Bxb7 $2 exd4 19. Bxf6 (19. Bxa8 $2 dxc3 20. Rxc3 Qxa8 $19) 19... Nxf6 20. Bxa8 dxc3 21. Rxc3 Qxa8 $19) 18... Bxg2 {[%emt 0:01:01]} (18... Nd5 $1 $11) 19. exf6 $16 {[%emt 0:00:52]} gxf6 {[%emt 0:00:05] White must now prevent ...Bh3.} 20. Bf4 {[%emt 0:03:26]} (20. Qxg2 $6 fxg5 21. Nc6 Qb6+ 22. Kh1 Bb4 $11) 20... e5 {[%emt 0:00:24]} 21. Qxg2 {[%emt 0:02:36]} (21. Kxg2 $16 exf4 22. Nf5 (22. gxf4 Qb7+ 23. Kh3 Nc5 $11) (22. Qxf4 Qxf4 23. gxf4 Nb6 $16)) 21... Qa7 $2 {[%emt 0:00:01][%mdl 8192] [#]} (21... Bc5 $1 $11 {and Black has nothing to worry.}) 22. Kh1 $1 {[%emt 0:02:06]} exd4 {[%emt 0:00:40]} 23. Nd5 $36 {[%emt 0:00:22][%mdl 2048] White is really pushing.} Bf8 {[%emt 0:02:03]} 24. Qh3 {[%emt 0:01:07] 0x0.0024e1f7cfb6dp-1022s more active pieces.} (24. Qf3 $16 {And now Rxe8 would win.} Rxe1+ 25. Rxe1) 24... Qb7 $2 {[%emt 0:00:31][%mdl 8192] [#] Black cannot hold the game after this.} (24... Rxe1+ $11 25. Rxe1 Kh8) 25. Qxd7 $3 $18 {[%emt 0:00:26][%mdl 512] White is clearly winning.} Rxe1+ {[%emt 0:00:40]} (25... Qxd7 26. Nxf6+) 26. Rxe1 {[%emt 0:00:05]} Qxd7 {[%emt 0:02:10]} 27. Nxf6+ {[%emt 0:00:05]} Kg7 {[%emt 0:00:04]} 28. Nxd7 {[%emt 0:00:05]} Rd8 {[%emt 0:00:19]} 29. Be5+ {[%emt 0:00:35] Weighted Error Value: White=0.41/Black=0.67} 1-0

[Event "Austrian Championship 2022"]
[Site "Vienna"]
[Date "2022.08.16"]
[Round "6.8"]
[White "Weichhart, Daniel"]
[Black "Mayrhuber, Tobias"]
[Result "0-1"]
[ECO "E06"]
[WhiteElo "1965"]
[BlackElo "2010"]
[Annotator "NA RC"]
[PlyCount "44"]
[EventDate "2022.08.12"]
[EventType "swiss"]
[EventCountry "AUT"]
[SourceTitle "playchess.com"]
[Source "ChessBase"]
[SourceQuality "1"]
[TimeControl "40/5400+30:1800+30"]

1. Nf3 {[%emt 0:00:06]} d5 {[%emt 0:00:09]} 2. g3 {[%emt 0:00:06]} Nf6 {[%emt 0:00:07]} 3. Bg2 {[%emt 0:00:05]} e6 {[%emt 0:00:14]} 4. O-O {[%emt 0:00:16]} Be7 {[%emt 0:00:15]} 5. d4 {[%emt 0:00:06]} O-O {[%emt 0:00:08]} 6. c4 {[%emt 0:00:03]} c6 {[%emt 0:00:25]} 7. Nbd2 {[%emt 0:00:12]} b6 {[%emt 0:00:31]} 8. Qc2 {[%emt 0:00:07]} Bb7 {[%emt 0:00:41]} 9. e4 {[%emt 0:00:08]} Na6 {[%emt 0:00:40]} 10. a3 {[%emt 0:01:39]} c5 {[%emt 0:02:55]} 11. e5 {[%emt 0:01:24]} Nd7 {[%emt 0:04:29]} 12. Rd1 {[%emt 0:02:54]} cxd4 {[%emt 0:05:34]} 13. cxd5 {[%emt 0:02:03]} Bxd5 {[%emt 0:04:16]} 14. Ne4 {[%emt 0:02:23]} Rc8 {[%emt 0:07:32]} 15. Qb1 {[%emt 0:00:24]} Nac5 {[%emt 0:12:29]} 16. Nxd4 {[%emt 0:12:27]} Nxe5 {[%emt 0:03:45]} 17. Nxc5 {[%emt 1:14:37]} Bxg2 {[%emt 0:04:20]} 18. Ncxe6 {[%emt 0:00:00]} fxe6 {[%emt 0:03:01]} 19. Kxg2 {[%emt 0:00:00]} Qd5+ {[%emt 0:00:26]} 20. Kh3 {[%emt 0:00:00]} Rf5 {[%emt 0:48:33]} 21. f3 Rxf3 {[%emt 0:00:00]} 22. Bf4 {[%emt 0:00:00]} Rf2 {[%emt 0:00:00]} 0-1

[Event "Austrian Championship 2022"]
[Site "Vienna"]
[Date "2022.08.16"]
[Round "6.9"]
[White "Schreiner, Peter"]
[Black "Schnepp, Gunnar"]
[Result "1-0"]
[ECO "E16"]
[WhiteElo "2416"]
[BlackElo "2265"]
[Annotator "TA"]
[PlyCount "81"]
[EventDate "2022.08.12"]
[EventType "swiss"]
[EventCountry "AUT"]
[SourceTitle "playchess.com"]
[Source "ChessBase"]
[SourceQuality "1"]
[TimeControl "40/5400+30:1800+30"]

{[%evp 14,81,56,53,58,61,93,77,204,123,181,134,128,115,116,120,138,137,139,139,149,157,152,144,131,142,173,87,87,94,81,96,105,71,121,54,75,64,63,62,53,0,0,0,0,0,0,0,0,0,-2,-6,-8,-43,0,0,0,-80,87,60,336,320,29971,29971,29983,29984,29997,29996,29996,29997]} 1. Nf3 {[%emt 0:02:28]} Nf6 {[%emt 0:00:07]} 2. c4 {[%emt 0:00:41]} e6 {[%emt 0:01:14]} 3. g3 {[%emt 0:00:57]} b6 {[%emt 0:07:50]} 4. Bg2 {[%emt 0:01:22]} Bb7 {[%emt 0:00:04]} 5. d4 {[%emt 0:02:09]} Bb4+ {[%emt 0:00:45]} 6. Bd2 {[%emt 0:00:16]} Qe7 {[%emt 0:02:42]} 7. O-O {[%emt 0:01:15]} O-O {[%emt 0:14:55]} 8. Bf4 {[%emt 0:10:51] was the old line (8.Nc3).} Bd6 {[%emt 0:08:58] Prevents c5. 8...Bd6 is better than 8...d5. E16: Queen's Indian: 4 g3 Bb7 5 Bg2 Bb4+.} 9. Bg5 {[%emt 0:02:31]} c5 {[%emt 0:21:11] [#]} 10. d5 $146 {[%emt 0:13:29]} ({Predecessor:} 10. Nc3 h6 11. Bxf6 Qxf6 12. e4 cxd4 13. Nb5 e5 14. Nxe5 Qxe5 15. f4 Qc5 16. b4 Qxb4 {0-1 (28) Mariani,D (2057)-Da Cruz,K Florianopolis 2010}) 10... b5 {[%emt 0:15:14]} (10... exd5 $16 11. cxd5 h6 12. Bxf6 Qxf6) 11. dxe6 {[%emt 0:07:43]} (11. cxb5 $6 exd5 12. Nh4 Be5 $16) 11... fxe6 {[%emt 0:01:20]} (11... dxe6 $16 12. Bxf6 (12. cxb5 Nbd7 $14) 12... gxf6) 12. cxb5 {[%emt 0:00:55]} (12. Nc3 $18 Nc6 13. cxb5 (13. Nxb5 Bb8 $16)) 12... Bc7 $16 {[%emt 0:02:32]} 13. Qc2 {[%emt 0:13:45]} d5 {[%emt 0:01:51]} 14. e4 {[%emt 0:02:21] Hoping for e5.} h6 {[%emt 0:02:52]} 15. Bxf6 {[%emt 0:02:06]} Qxf6 {[%emt 0:01:15]} 16. exd5 {[%emt 0:02:38]} ({Don't play} 16. Qxc5 Bb6 17. Qc2 dxe4 $16) 16... Bxd5 {[%emt 0:01:24]} 17. Nfd2 {[%emt 0:03:35]} Bxg2 {[%emt 0:00:49]} (17... Nd7 18. Nc3 Bxg2 19. Kxg2 $16) 18. Kxg2 {[%emt 0:00:19]} a6 {[%emt 0:02:08]} 19. Nc3 {[%emt 0:18:18]} Be5 {[%emt 0:00:06]} 20. Qe4 {[%emt 0:04:47]} (20. b6 $18) 20... Nd7 {[%emt 0:01:13][%cal Bb8d7,Bd7b6,Bb6d5,Bd5c3][%mdl 32]} 21. bxa6 {[%emt 0:02:21]} Bxc3 {[%emt 0:00:29]} 22. bxc3 {[%emt 0:00:31]} Rxa6 {[%emt 0:00:38]} 23. Qd3 {[%emt 0:01:39]} Ra7 {[%emt 0:00:50]} (23... Ra3 $142) 24. f4 {[%emt 0:01:26]} (24. a4 $16) 24... Nb6 {[%emt 0:02:02]} 25. Ne4 {[%emt 0:01:08][%csl LRc5,LRf6]} Qf5 {[%emt 0:00:33]} 26. Qe2 {[%emt 0:01:19]} Ra4 {[%emt 0:01:57]} 27. Nf2 {[%emt 0:00:58]} (27. Rfe1 $14) 27... Nd5 $11 {[%emt 0:00:39]} 28. Rae1 {[%emt 0:01:12]} Nxc3 {[%emt 0:02:34]} 29. Qxe6+ {[%emt 0:00:18]} Qxe6 {[%emt 0:00:01]} 30. Rxe6 {[%emt 0:00:06]} Rxa2 {[%emt 0:00:06]} 31. Kh3 {[%emt 0:01:00]} Rf5 {[%emt 0:05:53]} 32. Kg4 {[%emt 0:00:50]} Rd5 {[%emt 0:00:04]} 33. h3 {[%emt 0:00:59]} h5+ {[%emt 0:00:24]} 34. Kh4 $1 {[%emt 0:00:18]} Kf7 {[%emt 0:02:12]} 35. Re3 {[%emt 0:00:30] [#]} (35. Rc6 $11 {keeps the balance.}) 35... Rc2 $2 {[%emt 0:00:26]} (35... Rxf2 $1 $17 36. Rxf2 Nd1) 36. Nd3 $16 {[%emt 0:00:26]} g6 $2 {[%emt 0:00:29][%mdl 8192] [#]} ({Black should play} 36... Kf6 $1 $14) 37. Rfe1 $1 $18 {[%emt 0:00:59] Intending Re7+ and mate.} Kg7 $2 {[%emt 0:00:30]} (37... Rd6 $18 38. Kg5 (38. Nxc5 Nd5 $18) (38. Re7+ Kf6 $16) 38... Nd5) 38. Re7+ {[%emt 0:00:20] White mates.} Kh6 {[%emt 0:00:36]} 39. Ne5 {[%emt 0:00:20]} Nb5 {[%emt 0:00:33]} 40. Nf7+ {[%emt 0:00:25]} Kg7 {[%emt 0:00:16]} 41. Ng5+ {[%emt 0:01:35] Weighted Error Value: White=0.16 (very precise) /Black=0.50} 1-0

[Event "Austrian Championship 2022"]
[Site "Vienna"]
[Date "2022.08.16"]
[Round "6.10"]
[White "Kilgus, Georg"]
[Black "Exler, Veronika"]
[Result "1-0"]
[ECO "B13"]
[WhiteElo "2386"]
[BlackElo "2132"]
[Annotator "TA"]
[PlyCount "57"]
[EventDate "2022.08.12"]
[EventType "swiss"]
[EventCountry "AUT"]
[SourceTitle "playchess.com"]
[Source "ChessBase"]
[SourceQuality "1"]
[TimeControl "40/5400+30:1800+30"]

{[%evp 13,57,14,12,24,24,14,36,17,32,33,52,44,30,37,65,51,62,31,79,70,64,51,120,20,109,106,167,144,160,154,600,588,639,641,1223,870,1783,533,530,533,528,517,767,775,781,679]} 1. e4 {[%emt 0:00:02]} c6 {[%emt 0:00:03]} 2. d4 {[%emt 0:00:03]} d5 {[%emt 0:00:03]} 3. exd5 {[%emt 0:00:03]} cxd5 {[%emt 0:00:04]} 4. Bd3 {[%emt 0:00:04]} Nc6 {[%emt 0:00:05]} 5. c3 {[%emt 0:00:03]} Qc7 {[%emt 0:00:05]} 6. h3 {[%emt 0:00:11]} Nf6 {[%emt 0:02:31]} 7. Nf3 {[%emt 0:00:07]} g6 {[%emt 0:00:05]} 8. Qc2 {[%emt 0:00:05] is the new trend. B13: Caro-Kann: Exchange Variation and Panov-Botvinnik Attack.} Bg7 {[%emt 0:00:20]} 9. O-O {[%emt 0:00:20]} O-O {[%emt 0:00:19]} 10. Re1 {[%emt 0:00:11] White is slightly better.} Nh5 {[%emt 0:02:25]} 11. Be3 {[%emt 0:00:49]} Bd7 {[%emt 0:15:18]} 12. Na3 {[%emt 0:06:02][%cal Bb1a3,Ba3c2,Bc2e3][%mdl 32]} a6 {[%emt 0:00:42]} 13. Qd2 {[%emt 0:00:08] [#]} b5 $146 {[%emt 0:09:20]} ({Predecessor:} 13... Rfe8 14. g4 Nf6 15. Bf4 Qb6 16. Ne5 Rad8 17. f3 Bc8 18. Qh2 Be6 19. Re2 Rc8 {½-½ (31) Ganguly,S (2658)-Ponomariov,R (2675) Linares 2019}) 14. Rac1 {[%emt 0:37:37]} Rfc8 {[%emt 0:00:26]} 15. Bh6 {[%emt 0:08:32]} Bh8 {[%emt 0:05:59]} (15... Qd6 $14 {might be stronger.}) 16. Nc2 $16 {[%emt 0:01:59]} e6 {[%emt 0:05:47]} 17. Ne3 {[%emt 0:04:12]} Qb6 {[%emt 0:12:01]} (17... f5 $14) 18. Ne5 {[%emt 0:08:22]} ({White should try} 18. Ng4 $16) 18... Be8 {[%emt 0:00:53]} ({Much less strong is} 18... Nxe5 19. dxe5 Bc6 20. Nc2 $16) (18... Bxe5 $11 {keeps the balance.} 19. dxe5 Nxe5) 19. N3g4 {[%emt 0:05:21]} Nf6 {[%emt 0:08:52]} (19... Qb7 $16 {was called for.}) 20. Nxf6+ {[%emt 0:02:04]} Bxf6 {[%emt 0:00:07]} 21. Ng4 $40 {[%emt 0:00:09][%mdl 128] White has strong attack. White is much more active.} Bh8 {[%emt 0:01:27] This move loses the game for Black.} (21... Be7 $16 22. h4 f5) 22. Qf4 $18 {[%emt 0:00:49] Intending Nf6+ and mate. White is clearly winning.} Qd8 {[%emt 0:08:41] [#] Inhibits Nf6+.} 23. Rxe6 $3 {[%emt 0:00:59][%mdl 512]} f5 {[%emt 0:02:23]} (23... Nxd4 24. Rd6) 24. Bg5 {[%emt 0:02:43]} Qd7 {[%emt 0:01:14]} 25. Nf6+ {[%emt 0:04:03]} (25. Nh6+ $142 Kf8 {[#]} 26. Bxf5 $1 {[%mdl 512]} gxf5 27. Qxf5+ Bf7 28. Be7+ $1 {[%mdl 512]} Qxe7 29. Rxe7 Kxe7 30. Qxf7+ Kd8 31. Re1) 25... Bxf6 {[%emt 0:00:06]} 26. Rxf6 {[%emt 0:00:02]} Bf7 {[%emt 0:00:12]} 27. Rd6 {[%emt 0:00:45]} Qc7 {[%emt 0:00:08]} 28. Re1 {[%emt 0:00:53]} Qb7 {[%emt 0:02:52]} 29. Bf6 {[%emt 0:00:21] Weighted Error Value: White=0.52/Black=0.70} 1-0

[Event "Austrian Championship 2022"]
[Site "Vienna"]
[Date "2022.08.16"]
[Round "6.11"]
[White "Marakovits, Nico"]
[Black "Steindl, Johannes"]
[Result "0-1"]
[ECO "E94"]
[WhiteElo "2259"]
[BlackElo "2312"]
[Annotator "TA"]
[PlyCount "106"]
[EventDate "2022.08.12"]
[EventType "swiss"]
[EventCountry "AUT"]
[SourceTitle "playchess.com"]
[Source "ChessBase"]
[SourceQuality "1"]
[TimeControl "40/5400+30:1800+30"]

{[%evp 19,106,23,27,0,0,-95,-93,-83,-96,-88,-52,-68,-72,-64,-45,-86,-92,-100,-87,-91,-99,-79,-80,-100,-66,-65,-72,-69,-52,-80,-56,-41,-40,-100,-48,-43,87,87,64,78,75,66,286,282,291,294,287,295,289,289,279,272,177,0,69,40,77,18,45,0,0,-256,-250,-872,-1095,-924,-1111,-1043,-949,-2188,-2153,-1878,-1350,-804,-789,-6091,-5289,-5381,-4850,-29981,-29982,-29982,-29978,-29978,-29977,-29977,-29978,-29978,-29976]} 1. c4 {[%emt 0:00:02]} Nf6 {[%emt 0:03:59]} 2. Nc3 {[%emt 0:00:10]} g6 {[%emt 0:00:04]} 3. e4 {[%emt 0:00:04]} d6 {[%emt 0:00:04]} 4. d4 {[%emt 0:00:04]} Bg7 {[%emt 0:00:03]} 5. Nf3 {[%emt 0:00:25]} O-O {[%emt 0:00:06]} 6. Be2 {[%emt 0:00:09]} Nbd7 {[%emt 0:00:04]} 7. O-O {[%emt 0:00:08]} e5 {[%emt 0:00:03]} 8. d5 {[%emt 0:01:11]} Nc5 {[%emt 0:00:15]} 9. Qc2 {[%emt 0:01:07]} a5 {[%emt 0:00:11]} 10. Ne1 {[%emt 0:13:04]} Bd7 {[%emt 0:07:56]} 11. b3 {[%emt 0:04:18] E94: King's Indian: Classical: 6 Be2 e5 7 0-0: Various Black 7th moves.} c6 {[%emt 0:03:46]} 12. Be3 {[%emt 0:06:00] [#]} (12. Ba3 $11) 12... Ncxe4 $1 $17 {[%emt 0:00:41]} 13. Nxe4 {[%emt 0:25:34] Black is better.} Nxe4 {[%emt 0:00:05] [#]} 14. Rd1 $146 {[%emt 0:00:57]} (14. Qxe4 $2 Bf5 15. Qf3 e4 $19) ({Predecessor:} 14. Qxe4 Bf5 15. Qf3 e4 16. Qg3 Bxa1 17. Bf4 Be5 18. Bxe5 dxe5 19. Qxe5 Re8 20. Qd4 {0-1 (36) Vonthron,H (2329)-Nijboer,F (2553) Salou 2005}) 14... f5 {[%emt 0:02:36]} 15. f3 $1 {[%emt 0:04:28] Black must now prevent dxc6.} Nf6 {[%emt 0:02:39] aiming for ...cxd5.} 16. dxc6 {[%emt 0:00:45]} Bxc6 {[%emt 0:00:05]} 17. Bc5 {[%emt 0:02:09]} Ne8 {[%emt 0:00:46]} 18. Qd2 {[%emt 0:08:12]} Rf7 {[%emt 0:16:56]} 19. Nc2 {[%emt 0:06:08]} Rd7 {[%emt 0:00:17]} 20. Bf2 {[%emt 0:00:15]} Nf6 {[%emt 0:02:14]} 21. Ne3 {[%emt 0:02:22]} Qb8 {[%emt 0:14:27]} 22. Nd5 {[%emt 0:07:15]} Bxd5 {[%emt 0:04:32]} 23. cxd5 {[%emt 0:00:07]} Re7 {[%emt 0:00:57]} 24. Be3 {[%emt 0:07:17]} Nd7 {[%emt 0:03:29]} 25. Rc1 {[%emt 0:01:22]} Qd8 {[%emt 0:02:46]} 26. Bb5 {[%emt 0:01:01] [#]} ({White should try} 26. Rc4 $15) 26... e4 {[%emt 0:01:54]} (26... Bh6 $1 $17 {And now ...Bxe3+ would win.} 27. Bxh6 Qb6+ 28. Be3 Qxb5) 27. f4 {[%emt 0:01:05]} Nc5 {[%emt 0:03:03]} (27... Rf7 $15 {keeps the upper hand.}) 28. Rxc5 $16 {[%emt 0:04:10]} (28. Bxc5 $2 dxc5 29. Kh1 Bd4 $19) 28... dxc5 {[%emt 0:00:33]} 29. d6 {[%emt 0:01:13]} Rf7 {[%emt 0:03:41] Threatens to win with ...Qb6.} 30. Bc4 {[%emt 0:02:55] This bishop pair is nice.} b6 $2 {[%emt 0:00:53]} 31. Bxf7+ $18 {[%emt 0:00:53]} Kxf7 {[%emt 0:00:03]} 32. Qd5+ {[%emt 0:00:03]} Kf8 {[%emt 0:00:04]} 33. d7 {[%emt 0:00:45]} Bf6 {[%emt 0:06:18]} 34. Rd1 {[%emt 0:00:17]} Kg7 {[%emt 0:00:23]} 35. g4 $1 {[%emt 0:00:47]} fxg4 {[%emt 0:08:51]} 36. Qxe4 $2 {[%emt 0:00:21]} (36. f5 $1 $18 {[%cal Rf5g6]}) 36... Qf8 {[%emt 0:00:34]} (36... Rb8 $1 $11) 37. f5 $14 {[%emt 0:01:07]} Rd8 $1 {[%emt 0:03:58] [#]} 38. fxg6 {[%emt 0:00:36]} ({Of course not} 38. Qxg4 $6 Qe7 39. Rd3 Rxd7 40. fxg6 Rxd3 $11) (38. Qe6 $1 $16) 38... hxg6 $11 {[%emt 0:00:45]} 39. Rd5 {[%emt 0:00:36]} Qf7 {[%emt 0:00:56]} 40. Rd6 {[%emt 0:00:33][%mdl 8192]} (40. Qd3 $11 {and White is okay.}) 40... Rxd7 $19 {[%emt 0:00:24]} 41. Qe6 {[%emt 0:12:33]} (41. Rxb6 Re7 42. Qf4 {[#]} Rxe3 $1 {[%mdl 512]} 43. Rxf6 (43. Qxe3 $2 {is the wrong capture.} Bd4 $19) 43... Re1+ 44. Kf2 Qxf6 $19) (41. Rxd7 Qxd7 42. Bf2) 41... Rxd6 {[%emt 0:01:42]} 42. Qxd6 {[%emt 0:00:29]} Qe7 {[%emt 0:00:05]} 43. Qxe7+ {[%emt 0:03:06]} Bxe7 {[%emt 0:00:04][%mdl 4096] Endgame KB-KB} 44. Bf4 {[%emt 0:00:28]} b5 {[%emt 0:02:13]} 45. Kf2 {[%emt 0:01:21]} Kf6 {[%emt 0:00:14]} 46. Ke3 {[%emt 0:01:27]} Kf5 {[%emt 0:01:33] Strongly threatening ...Bg5.} 47. Bg3 {[%emt 0:02:52]} Bg5+ {[%emt 0:02:20]} 48. Kd3 {[%emt 0:00:10]} Bf4 {[%emt 0:00:05] ( -> ...Bxg3)} 49. a4 {[%emt 0:00:37]} Bxg3 {[%emt 0:00:38] Black mates.} 50. hxg3 {[%emt 0:00:04]} c4+ {[%emt 0:00:25]} 51. bxc4 {[%emt 0:00:05]} b4 {[%emt 0:00:13]} 52. c5 {[%emt 0:00:52]} Ke6 {[%emt 0:00:09]} 53. Kc4 {[%emt 0:00:02]} Kd7 {[%emt 0:00:04] Weighted Error Value: White=0.73/Black=0.24 (precise)} 0-1

[Event "Austrian Championship 2022"]
[Site "Vienna"]
[Date "2022.08.16"]
[Round "6.12"]
[White "Kristoferitsch, Daniel"]
[Black "Kienboeck, Benjamin"]
[Result "1-0"]
[ECO "A22"]
[WhiteElo "2312"]
[BlackElo "2151"]
[Annotator "TA"]
[PlyCount "103"]
[EventDate "2022.08.12"]
[EventType "swiss"]
[EventCountry "AUT"]
[SourceTitle "playchess.com"]
[Source "ChessBase"]
[SourceQuality "1"]
[TimeControl "40/5400+30:1800+30"]

{[%evp 10,103,15,9,16,23,24,21,19,13,16,0,0,0,97,100,84,79,83,87,96,64,85,39,101,58,87,86,100,87,86,89,91,76,67,53,54,47,70,10,44,0,75,64,107,101,112,83,140,130,134,132,119,110,130,87,91,94,88,24,24,39,34,0,0,0,70,61,64,74,66,81,64,64,214,214,246,249,250,254,250,249,12833,12833,12834,377,1428,0,12833,5609,12837,12836,12840,12839,12833,7999]} 1. c4 {[%emt 0:00:07]} Nf6 {[%emt 0:00:09]} 2. Nc3 {[%emt 0:00:06]} e5 {[%emt 0:00:09]} 3. g3 {[%emt 0:01:49]} Bb4 {[%emt 0:00:14]} 4. Bg2 {[%emt 0:00:39]} O-O {[%emt 0:00:19]} 5. e4 {[%emt 0:07:05]} Bxc3 {[%emt 0:06:05]} 6. bxc3 {[%emt 0:00:13]} Re8 {[%emt 0:00:32] A22: English Opening: 1...e5 2 Nc3 Nf6.} 7. Ne2 {[%emt 0:01:47]} d6 {[%emt 0:00:20]} 8. O-O {[%emt 0:00:38]} Nbd7 {[%emt 0:01:38] The position is equal.} 9. d3 {[%emt 0:00:22]} a6 {[%emt 0:04:20] [#]} 10. Qc2 $146 {[%emt 0:13:14]} ({Predecessor:} 10. h3 b5 11. cxb5 axb5 12. Be3 Bb7 13. a4 bxa4 14. Rxa4 Bc6 15. Ra1 Qe7 16. c4 {½-½ (22) Fechner,F-Hammel,R (2062) Mecklenburg VP 2016}) 10... b5 {[%emt 0:12:15]} 11. cxb5 $1 {[%emt 0:00:11]} Bb7 {[%emt 0:00:09]} (11... axb5 $11 12. Be3 Ra3) 12. c4 $16 {[%emt 0:03:33]} axb5 {[%emt 0:12:20]} 13. cxb5 {[%emt 0:00:24]} c6 {[%emt 0:00:25]} 14. bxc6 {[%emt 0:02:30]} Rc8 {[%emt 0:00:12]} 15. Be3 {[%emt 0:04:17]} Rxc6 {[%emt 0:02:26]} 16. Qd2 {[%emt 0:00:17]} (16. Nc3 $1 $16) 16... Qa8 {[%emt 0:00:44]} (16... Ng4 $14) 17. h3 {[%emt 0:02:50]} Rec8 {[%emt 0:03:22]} 18. Rfc1 {[%emt 0:00:23] Prevents Rc2.} Rxc1+ {[%emt 0:00:51]} 19. Rxc1 {[%emt 0:00:13]} Rxc1+ {[%emt 0:00:26]} 20. Nxc1 {[%emt 0:00:10]} d5 {[%emt 0:00:23][%cal Rd5e4]} 21. exd5 {[%emt 0:10:43]} Bxd5 {[%emt 0:13:08]} 22. Bxd5 {[%emt 0:01:11]} Nxd5 {[%emt 0:00:06]} 23. Qe2 {[%emt 0:07:26]} Qc6 {[%emt 0:04:14]} 24. Qf3 {[%emt 0:04:01]} ({Better is} 24. Bd2 $14) 24... N7f6 $1 $11 {[%emt 0:11:56]} 25. Qd1 {[%emt 0:24:47]} h6 {[%emt 0:01:57]} (25... Nxe3 $11 26. fxe3 h5) 26. Bd2 $1 $16 {[%emt 0:00:28]} Nc7 {[%emt 0:02:42]} 27. Qb3 {[%emt 0:01:32]} Nb5 {[%emt 0:09:57]} 28. Qc4 {[%emt 0:00:49]} Qf3 {[%emt 0:01:49]} 29. Qxb5 {[%emt 0:01:43]} Qd1+ {[%emt 0:00:04]} 30. Kg2 {[%emt 0:00:07]} Qxd2 {[%emt 0:00:06][%mdl 4096] Endgame KQN-KQN} 31. Qc4 {[%emt 0:01:52]} Qa5 {[%emt 0:03:26]} 32. a4 {[%emt 0:04:28]} Qa8+ {[%emt 0:00:05]} 33. Kg1 {[%emt 0:00:57]} e4 {[%emt 0:00:25][%cal Oe4e3] [#]} 34. dxe4 {[%emt 0:02:26]} (34. Qd4 $1 $16) 34... Nxe4 $11 {[%emt 0:00:09]} 35. Nb3 {[%emt 0:00:28] h4 is the strong threat.} Ng5 {[%emt 0:00:37]} 36. h4 {[%emt 0:01:08]} Nf3+ {[%emt 0:02:05]} 37. Kf1 {[%emt 0:00:07]} Qb8 {[%emt 0:02:57]} (37... Ne5 $11 38. Qf4 Qa6+ 39. Kg1 Qd6) 38. a5 $14 {[%emt 0:01:29]} Qa8 {[%emt 0:05:43] Against Qd5} 39. a6 {[%emt 0:01:52]} Ne5 {[%emt 0:00:22]} 40. Qb5 {[%emt 0:00:46]} Qh1+ {[%emt 0:00:13]} 41. Ke2 {[%emt 0:30:09]} Qe4+ {[%emt 0:12:35] [#]} (41... Qf3+ $14 42. Ke1 Nd3+ 43. Kd2 Nxf2) 42. Kd2 $1 $18 {[%emt 0:00:00] aiming for a7.} Nf3+ {[%emt 0:03:39]} 43. Kc3 {[%emt 0:00:00] Black must now prevent a7.} Qe1+ {[%emt 0:00:42]} 44. Kb2 {[%emt 0:00:00] Threatens to win with Ka3.} Qxf2+ {[%emt 0:01:55]} 45. Ka3 {[%emt 0:00:00] Hoping for Qb8+.} Kh7 $2 {[%emt 0:03:52]} (45... Ne1 46. Qb8+ Kh7) 46. Qf5+ {[%emt 0:00:00]} Kg8 {[%emt 0:00:09]} 47. Qc8+ {[%emt 0:00:00]} (47. Qc5 $142 Qxg3 48. a7) 47... Kh7 {[%emt 0:00:02]} 48. Qf5+ {[%emt 0:00:00]} (48. Qc5 $142 Qxc5+ 49. Nxc5) 48... Kg8 {[%emt 0:00:04]} 49. Qc5 {[%emt 0:00:00] Inhibits Qb6. White is clearly winning.} Qe2 {[%emt 0:01:26]} 50. a7 {[%emt 0:00:00]} Qa6+ {[%emt 0:00:11]} 51. Qa5 {[%emt 0:00:00]} Qd6+ {[%emt 0:00:08]} 52. Ka2 {[%emt 0:00:00] Weighted Error Value: White=0.43/Black=0.28 (precise)} 1-0